bitfinex/quotes_BTCUSD_20250129
["timestamp","ask_amount","ask_price","bid_price","bid_amount"]
[1738176299758,0.254001,102740.0,102730.0,0.53337927]
[1738176300524,0.254001,102740.0,102730.0,0.63062243]
[1738176301044,0.254001,102740.0,102730.0,0.75362243]
[1738176301250,0.254001,102740.0,102730.0,0.86292243]
[1738176301451,0.225701,102740.0,102730.0,0.86292243]
[1738176301723,0.219241,102740.0,102730.0,1.30784643]
[1738176301922,0.219241,102740.0,102730.0,1.30584643]
[1738176302134,0.219241,102740.0,102730.0,1.31584643]
[1738176302403,0.219241,102740.0,102730.0,1.34284643]
[1738176302807,0.219241,102740.0,102730.0,0.86792243]
[1738176303012,0.219241,102740.0,102730.0,0.76792243]
[1738176305718,0.219241,102740.0,102730.0,0.76827884]
[1738176305921,0.219241,102740.0,102730.0,0.76819767]
[1738176306334,0.219241,102740.0,102730.0,0.76813498]
[1738176306543,0.219241,102740.0,102730.0,0.76808657]
[1738176306744,0.219241,102740.0,102730.0,0.76802545]
[1738176306949,0.219241,102740.0,102730.0,0.76798708]
[1738176307328,0.219241,102740.0,102730.0,0.76792243]
[1738176308539,0.21953962,102740.0,102730.0,0.76792243]
[1738176308950,0.21953962,102740.0,102730.0,0.72222243]
[1738176312559,0.21953962,102740.0,102730.0,0.92222243]
[1738176312973,0.21953962,102740.0,102730.0,0.82222243]
[1738176313591,0.21953962,102740.0,102730.0,0.92222243]
[1738176313794,0.21953962,102740.0,102730.0,0.82222243]
[1738176314012,0.21953962,102740.0,102730.0,0.93222243]
[1738176315044,0.21953962,102740.0,102730.0,0.92222243]
[1738176315420,0.21953962,102740.0,102730.0,0.82222243]
[1738176315624,0.21953962,102740.0,102730.0,0.92222243]
[1738176316472,0.21953962,102740.0,102730.0,0.82222243]
[1738176316674,0.21953962,102740.0,102730.0,0.92222243]
[1738176317373,0.21953962,102740.0,102730.0,0.73182243]
[1738176322107,0.21953962,102740.0,102730.0,0.93182243]
[1738176325267,0.21953962,102740.0,102730.0,0.90882243]
[1738176325661,0.21953962,102740.0,102730.0,0.93182243]
[1738176325892,0.21953962,102740.0,102730.0,0.93097941]
[1738176326310,0.21953962,102740.0,102730.0,0.74567941]
[1738176326515,0.21953962,102740.0,102730.0,0.75527941]
[1738176326724,0.21953962,102740.0,102730.0,0.65527941]
[1738176327184,0.21953962,102740.0,102730.0,0.52543625]
[1738176327433,0.21953962,102740.0,102730.0,0.55803625]
[1738176327790,0.34853962,102740.0,102730.0,0.16358629]
[1738176328443,0.34853962,102740.0,102730.0,0.16158629]
[1738176328554,0.34853962,102740.0,102730.0,0.15658629]
[1738176328777,0.34853962,102740.0,102730.0,0.15858629]
[1738176329506,0.34853962,102740.0,102730.0,0.33158629]
[1738176332015,0.33853962,102740.0,102730.0,0.33158629]
[1738176336038,0.33853962,102740.0,102730.0,0.30858629]
[1738176344810,0.20953962,102740.0,102730.0,0.30858629]
[1738176354642,0.20953962,102740.0,102730.0,0.33874887]
[1738176354847,0.20953962,102740.0,102730.0,0.45899203]
[1738176355058,0.20953962,102740.0,102730.0,0.63459203]
[1738176355269,0.20953962,102740.0,102730.0,0.63259203]
[1738176355474,0.20953962,102740.0,102730.0,0.63959203]
[1738176355863,0.20953962,102740.0,102730.0,0.63259203]
[1738176356061,0.20953962,102740.0,102730.0,0.63759203]
[1738176356686,0.20953962,102740.0,102730.0,0.53759203]
[1738176357292,0.20953962,102740.0,102730.0,0.53959203]
[1738176360921,0.20953962,102740.0,102730.0,0.63959203]
[1738176364164,0.20953962,102740.0,102730.0,0.46399203]
[1738176364389,0.33683962,102740.0,102730.0,0.34374887]
[1738176364616,0.33683962,102740.0,102730.0,0.35330887]
[1738176364827,0.33683962,102740.0,102730.0,0.32314629]
[1738176365032,0.33683962,102740.0,102730.0,0.32114629]
[1738176365237,0.33683962,102740.0,102730.0,0.35132804]
[1738176365441,0.20953962,102740.0,102730.0,0.4665712]
[1738176365865,0.20953962,102740.0,102730.0,0.4685712]
[1738176367163,0.20953962,102740.0,102730.0,0.4705712]
[1738176367711,0.20953962,102740.0,102730.0,0.4685712]
[1738176368234,0.20953962,102740.0,102730.0,0.4735712]
[1738176380103,0.20953962,102740.0,102730.0,0.4640112]
[1738176380310,0.20953962,102740.0,102730.0,0.4735712]
[1738176380520,0.25703962,102740.0,102730.0,0.37632804]
[1738176381155,0.25703962,102740.0,102730.0,0.36676804]
[1738176381366,0.25703962,102740.0,102730.0,0.37632804]
[1738176382192,0.25703962,102740.0,102730.0,0.37132804]
[1738176382536,0.25703962,102740.0,102730.0,0.36932804]
[1738176382958,0.25703962,102740.0,102730.0,0.37632804]
[1738176383369,0.25703962,102740.0,102730.0,0.37432804]
[1738176383582,0.25703962,102740.0,102730.0,0.36476804]
[1738176383790,0.25703962,102740.0,102730.0,0.37432804]
[1738176384152,0.25703962,102740.0,102730.0,0.34632804]
[1738176384583,0.25703962,102740.0,102730.0,0.34832804]
[1738176388792,0.20953962,102740.0,102730.0,0.4685712]
[1738176389976,0.20953962,102740.0,102730.0,0.37132804]
[1738176390430,0.20953962,102740.0,102730.0,0.37332804]
[1738176390635,0.25703962,102740.0,102730.0,0.37332804]
[1738176390911,0.25703962,102740.0,102730.0,0.37132804]
[1738176391133,0.20953962,102740.0,102730.0,0.37132804]
[1738176391571,0.20953962,102740.0,102730.0,0.37632804]
[1738176391777,0.20953962,102740.0,102730.0,0.36932804]
[1738176392735,0.20953962,102740.0,102730.0,0.37432804]
[1738176393957,0.20953962,102740.0,102730.0,0.37632804]
[1738176398557,0.20953962,102740.0,102730.0,0.5735712]
[1738176400820,0.20953962,102740.0,102730.0,0.8015712]
[1738176401037,0.20953962,102740.0,102730.0,2.9235032]
[1738176401251,0.20953962,102740.0,102730.0,2.3185242]
[1738176401475,0.00029862,102760.0,102750.0,0.374885]
[1738176401680,6.2e-07,102760.0,102750.0,0.67170991]
[1738176401891,0.00029904,102780.0,102770.0,0.418956]
[1738176402112,0.00029904,102780.0,102770.0,0.44638091]
[1738176402333,0.00029904,102780.0,102770.0,0.35869775]
[1738176402547,0.00029904,102780.0,102770.0,0.328516]
[1738176402760,0.00029904,102780.0,102770.0,0.305516]
[1738176402963,0.04649883,102790.0,102780.0,0.145942]
[1738176403198,0.04697949,102790.0,102780.0,0.145942]
[1738176404506,0.00077949,102790.0,102780.0,0.145942]
[1738176405538,0.00177949,102790.0,102780.0,0.145942]
[1738176408390,0.00077949,102790.0,102780.0,0.145942]
[1738176408566,0.00077949,102790.0,102780.0,0.1579477]
[1738176408944,0.00077949,102790.0,102780.0,0.1559477]
[1738176409152,0.00077949,102790.0,102780.0,0.33192055]
[1738176409347,0.00077949,102790.0,102780.0,0.52819086]
[1738176410427,0.00077949,102790.0,102780.0,0.52619086]
[1738176410636,0.00077949,102790.0,102780.0,0.53119086]
[1738176410839,0.00077949,102790.0,102780.0,0.53219086]
[1738176411047,0.00077949,102790.0,102780.0,0.52719086]
[1738176411249,0.00077949,102790.0,102780.0,0.52733306]
[1738176411471,0.00077949,102790.0,102780.0,0.53233306]
[1738176412574,0.00077949,102790.0,102780.0,0.53133306]
[1738176413213,0.00077949,102790.0,102780.0,0.53233306]
[1738176416299,0.00077949,102790.0,102780.0,0.1620899]
[1738176416300,0.13327949,102790.0,102780.0,0.1620899]
[1738176416717,0.37645065,102790.0,102780.0,0.0161479]
[1738176416934,0.23052265,102790.0,102780.0,0.0151479]
[1738176417345,0.23052265,102790.0,102780.0,0.0101479]
[1738176417778,0.37645065,102790.0,102780.0,0.1601479]
[1738176418333,0.23052265,102790.0,102780.0,0.1611479]
[1738176418716,0.37645065,102790.0,102780.0,0.1511422]
[1738176418933,0.37645065,102790.0,102780.0,0.1501422]
[1738176419319,0.37745065,102790.0,102780.0,0.1501422]
[1738176420411,0.23152265,102790.0,102780.0,0.1501422]
[1738176421150,0.37745065,102790.0,102780.0,0.1501422]
[1738176421400,0.37745065,102790.0,102780.0,0.0001422]
[1738176422295,0.23152265,102790.0,102780.0,0.0001422]
[1738176422969,0.37745065,102790.0,102780.0,0.0001422]
[1738176423202,0.37745065,102790.0,102780.0,0.1460842]
[1738176423203,0.23152265,102790.0,102780.0,0.1460842]
[1738176424723,0.13427949,102790.0,102780.0,0.1460842]
[1738176425338,0.23152265,102790.0,102780.0,0.1460842]
[1738176425550,0.23052265,102790.0,102780.0,0.1460842]
[1738176425970,0.23052265,102790.0,102780.0,0.1480842]
[1738176426686,0.23152265,102790.0,102780.0,0.1480842]
[1738176427049,0.23152265,102790.0,102780.0,0.1460842]
[1738176428650,0.23152265,102790.0,102780.0,0.2960842]
[1738176432540,0.22652265,102790.0,102780.0,0.2960842]
[1738176433344,0.22682127,102790.0,102780.0,0.2960842]
[1738176438639,0.12957811,102790.0,102780.0,0.2960842]
[1738176438843,0.00129862,102790.0,102780.0,0.2960842]
[1738176439689,0.00029862,102790.0,102780.0,0.2960842]
[1738176440542,0.00029862,102790.0,102780.0,0.2980842]
[1738176446703,0.00029862,102790.0,102780.0,0.2978424]
[1738176448745,0.00029862,102790.0,102780.0,0.3208424]
[1738176448963,0.00029862,102790.0,102780.0,0.42825409]
[1738176449174,0.00029862,102790.0,102780.0,0.52549725]
[1738176449384,0.00029862,102790.0,102780.0,0.62549725]
[1738176450402,0.00029862,102790.0,102780.0,0.42825409]
[1738176450611,0.00029862,102790.0,102780.0,0.52825409]
[1738176451025,6.2e-07,102790.0,102780.0,1.56876825]
[1738176451237,6.2e-07,102790.0,102780.0,0.67379725]
[1738176452806,6.2e-07,102790.0,102780.0,0.68331725]
[1738176453013,6.2e-07,102790.0,102780.0,0.58331725]
[1738176453257,6.2e-07,102790.0,102780.0,0.68331725]
[1738176454859,6.2e-07,102790.0,102780.0,0.68131725]
[1738176454975,6.2e-07,102790.0,102780.0,0.68231725]
[1738176455934,6.2e-07,102790.0,102780.0,0.68245945]
[1738176456467,6.2e-07,102790.0,102780.0,0.33651629]
[1738176456672,6.2e-07,102790.0,102780.0,0.3115046]
[1738176456877,6.2e-07,102790.0,102780.0,0.1615046]
[1738176457058,6.2e-07,102790.0,102780.0,0.1519846]
[1738176457353,6.2e-07,102790.0,102780.0,0.1509846]
[1738176457562,6.2e-07,102790.0,102780.0,0.1459846]
[1738176457758,6.2e-07,102790.0,102780.0,0.2979846]
[1738176459597,6.2e-07,102790.0,102780.0,0.2959846]
[1738176460109,6.2e-07,102790.0,102780.0,0.2979846]
[1738176460313,6.2e-07,102790.0,102780.0,0.2959846]
[1738176460511,6.2e-07,102790.0,102780.0,0.2979846]
[1738176460744,6.2e-07,102790.0,102780.0,0.3075046]
[1738176461037,6.2e-07,102790.0,102780.0,0.3055046]
[1738176461241,6.2e-07,102790.0,102780.0,0.3075046]
[1738176461463,6.2e-07,102790.0,102780.0,0.3055046]
[1738176463389,6.2e-07,102790.0,102780.0,0.3075046]
[1738176463932,6.2e-07,102790.0,102780.0,0.3305046]
[1738176467139,6.2e-07,102790.0,102780.0,0.3209846]
[1738176467347,0.17924378,102790.0,102780.0,0.1479846]
[1738176467557,0.37407178,102790.0,102780.0,0.0021422]
[1738176468183,0.22814378,102790.0,102780.0,0.2980842]
[1738176468577,0.22914378,102790.0,102780.0,0.2980842]
[1738176469917,0.13190062,102790.0,102780.0,0.2980842]
[1738176470547,0.13190062,102790.0,102780.0,0.2960842]
[1738176470996,6.2e-07,102790.0,102780.0,0.2960842]
[1738176471610,6.2e-07,102790.0,102780.0,0.2980842]
[1738176471809,6.2e-07,102790.0,102780.0,0.3190842]
[1738176472249,6.2e-07,102790.0,102780.0,0.3210842]
[1738176473844,6.2e-07,102790.0,102780.0,0.3190842]
[1738176474250,6.2e-07,102790.0,102780.0,0.3250842]
[1738176476586,6.2e-07,102790.0,102780.0,0.3240842]
[1738176476978,6.2e-07,102790.0,102780.0,0.3200842]
[1738176477433,6.2e-07,102790.0,102780.0,0.3210842]
[1738176477626,6.2e-07,102790.0,102780.0,0.3200842]
[1738176477827,6.2e-07,102790.0,102780.0,0.34000619]
[1738176478041,6.2e-07,102790.0,102780.0,0.34500619]
[1738176483236,6.2e-07,102790.0,102780.0,0.35352619]
[1738176483766,6.2e-07,102790.0,102780.0,0.37845956]
[1738176484081,6.2e-07,102790.0,102780.0,0.38045956]
[1738176484291,6.2e-07,102790.0,102780.0,0.47770272]
[1738176484489,6.2e-07,102790.0,102780.0,0.55880272]
[1738176484716,6.2e-07,102790.0,102780.0,0.56380272]
[1738176485986,6.2e-07,102790.0,102780.0,0.56480272]
[1738176486562,6.2e-07,102790.0,102780.0,0.56380272]
[1738176486760,6.2e-07,102790.0,102780.0,0.56480272]
[1738176487391,0.00029883,102800.0,102790.0,0.498228]
[1738176487590,0.00044296,102800.0,102790.0,0.62540453]
[1738176488241,0.00029883,102820.0,102810.0,0.3189]
[1738176490059,0.00034682,102820.0,102810.0,0.3189]
[1738176490264,0.00034682,102820.0,102810.0,0.41614316]
[1738176490545,0.00134682,102820.0,102810.0,0.41614316]
[1738176491920,0.00134682,102820.0,102810.0,0.41814316]
[1738176492768,0.00034682,102820.0,102810.0,0.41814316]
[1738176494135,0.00034682,102820.0,102810.0,0.49804316]
[1738176494341,0.00034682,102820.0,102810.0,0.51706024]
[1738176495217,0.00034682,102820.0,102810.0,0.52669598]
[1738176502369,0.00034682,102820.0,102810.0,0.52683818]
[1738176509990,0.00034682,102820.0,102810.0,0.32669502]
[1738176510441,0.00034682,102820.0,102810.0,0.34969502]
[1738176511263,0.00034682,102820.0,102810.0,0.44693818]
[1738176514636,0.00034682,102820.0,102810.0,0.62663818]
[1738176514835,0.00034682,102820.0,102810.0,0.65641686]
[1738176515304,0.00034682,102820.0,102810.0,1.03699686]
[1738176515515,0.00034682,102820.0,102810.0,0.92183986]
[1738176516148,0.00129883,102840.0,102830.0,0.475871]
[1738176516350,0.00134681,102840.0,102830.0,0.60559416]
[1738176516808,0.00134681,102840.0,102830.0,0.63534997]
[1738176517026,0.00134681,102840.0,102830.0,0.62586997]
[1738176517231,0.00134681,102840.0,102830.0,0.63534997]
[1738176517925,0.00334681,102840.0,102830.0,1.27794997]
[1738176518117,8.1e-07,102840.0,102830.0,1.50359997]
[1738176518323,0.00029862,102860.0,102850.0,0.343943]
[1738176518531,0.0003466,102860.0,102850.0,0.59118616]
[1738176519300,0.0003466,102860.0,102850.0,0.71497877]
[1738176519674,0.0003466,102860.0,102850.0,0.59118616]
[1738176519881,0.0003466,102860.0,102850.0,0.41808616]
[1738176520087,0.1172466,102880.0,102870.0,0.145815]
[1738176521956,0.1182466,102880.0,102870.0,0.145815]
[1738176522692,0.11829458,102880.0,102870.0,0.145815]
[1738176525532,0.1185932,102880.0,102870.0,0.00991149]
[1738176525735,0.1185932,102880.0,102870.0,0.15572649]
[1738176525964,0.1185932,102880.0,102870.0,0.295815]
[1738176535017,0.0013466,102880.0,102870.0,0.318815]
[1738176535222,0.0013466,102880.0,102870.0,0.59745816]
[1738176535424,0.0013466,102880.0,102870.0,0.49745816]
[1738176536262,0.0013466,102880.0,102870.0,0.400215]
[1738176536676,0.0013466,102880.0,102870.0,0.40051341]
[1738176537061,0.0013466,102880.0,102870.0,0.49775657]
[1738176537221,0.0013466,102880.0,102870.0,0.62131178]
[1738176537624,0.0013466,102880.0,102870.0,0.59775657]
[1738176538909,0.0013466,102880.0,102870.0,0.64510439]
[1738176539112,0.0013466,102880.0,102870.0,0.59775657]
[1738176539323,0.0013466,102880.0,102870.0,0.62154918]
[1738176539503,0.0003466,102880.0,102870.0,0.64510439]
[1738176539888,0.0003466,102880.0,102870.0,0.65010439]
[1738176540234,0.0003466,102880.0,102870.0,0.62631178]
[1738176540448,0.0003466,102880.0,102870.0,0.60775657]
[1738176540882,0.0003466,102880.0,102870.0,0.65510439]
[1738176541083,0.0003466,102880.0,102870.0,0.70775657]
[1738176541285,0.0003466,102880.0,102870.0,0.75610439]
[1738176541577,0.0003466,102880.0,102870.0,0.73231178]
[1738176541765,0.0003466,102880.0,102870.0,0.70775657]
[1738176541986,0.0003466,102880.0,102870.0,0.42635657]
[1738176542199,0.0003466,102880.0,102870.0,0.15711341]
[1738176542405,0.0496466,102880.0,102870.0,0.16659341]
[1738176543030,0.0003466,102880.0,102870.0,0.33859341]
[1738176544034,0.0003466,102880.0,102870.0,0.32859341]
[1738176544450,0.0003466,102880.0,102870.0,0.33159341]
[1738176544878,0.0003466,102880.0,102870.0,0.42883657]
[1738176545306,0.0003466,102880.0,102870.0,0.33059341]
[1738176545584,0.0003466,102880.0,102870.0,0.32111341]
[1738176545788,0.0003466,102880.0,102870.0,0.32959341]
[1738176545993,0.0003466,102880.0,102870.0,0.33459341]
[1738176546199,0.0003466,102880.0,102870.0,0.33359341]
[1738176546403,0.0003466,102880.0,102870.0,0.50693657]
[1738176546815,0.0003466,102880.0,102870.0,1.05846157]
[1738176547029,0.019654,102890.0,102880.0,0.5999]
[1738176547234,0.019654,102890.0,102880.0,3.71707298]
[1738176547445,0.019654,102890.0,102880.0,2.76652737]
[1738176547658,0.019654,102890.0,102880.0,1.05864316]
[1738176547871,0.019654,102890.0,102880.0,0.87088]
[1738176548287,0.019654,102890.0,102880.0,0.2958]
[1738176548702,0.019654,102890.0,102880.0,0.3188]
[1738176549330,0.019654,102890.0,102880.0,0.2958]
[1738176549543,0.019654,102890.0,102880.0,0.30528]
[1738176549763,0.019654,102890.0,102880.0,0.30728]
[1738176550828,0.098954,102890.0,102880.0,0.30728]
[1738176551038,0.098954,102890.0,102880.0,0.2978]
[1738176551456,0.019654,102890.0,102880.0,0.2978]
[1738176551656,0.019654,102890.0,102880.0,0.30745214]
[1738176552019,0.019654,102890.0,102880.0,0.33045214]
[1738176552425,0.019654,102890.0,102880.0,0.39690214]
[1738176552621,0.019654,102890.0,102880.0,0.39490214]
[1738176552850,0.019654,102890.0,102880.0,0.39690214]
[1738176553287,0.019654,102890.0,102880.0,0.39490214]
[1738176553468,0.019654,102890.0,102880.0,0.39690214]
[1738176555398,0.019654,102890.0,102880.0,0.37390214]
[1738176557088,0.019654,102890.0,102880.0,0.39690214]
[1738176557289,0.019654,102890.0,102880.0,0.4941453]
[1738176557944,0.019654,102890.0,102880.0,0.52393365]
[1738176558368,0.019654,102890.0,102880.0,0.4941453]
[1738176558581,0.019654,102890.0,102880.0,0.5941453]
[1738176558810,0.019654,102890.0,102880.0,0.7117203]
[1738176558934,0.019654,102890.0,102880.0,1.0230143]
[1738176560308,0.019654,102890.0,102880.0,1.0210143]
[1738176560552,0.019654,102890.0,102880.0,1.05178565]
[1738176560782,0.019654,102890.0,102880.0,1.05708406]
[1738176560953,0.0197961,102890.0,102880.0,1.05708406]
[1738176561560,0.0197961,102890.0,102880.0,0.4309719]
[1738176561769,0.0197961,102890.0,102880.0,0.41064055]
[1738176562110,0.0197961,102890.0,102880.0,0.40120055]
[1738176562326,0.0197961,102890.0,102880.0,0.41064055]
[1738176562739,0.0197961,102890.0,102880.0,0.40120055]
[1738176562949,0.0820183,102900.0,102890.0,0.3424399]
[1738176564202,0.0830183,102900.0,102890.0,0.3424399]
[1738176565964,0.1294183,102900.0,102890.0,0.3424399]
[1738176566565,0.22666146,102900.0,102890.0,0.3424399]
[1738176567183,0.37243346,102900.0,102890.0,0.1966539]
[1738176567388,0.37243346,102900.0,102890.0,0.3424399]
[1738176567613,0.37243346,102900.0,102890.0,0.1966539]
[1738176567985,0.37243346,102900.0,102890.0,0.3424399]
[1738176568662,0.37243346,102900.0,102890.0,0.1966539]
[1738176570722,0.37243346,102900.0,102890.0,0.0466539]
[1738176571147,0.49153483,102900.0,102890.0,0.0466539]
[1738176571762,0.38243346,102900.0,102890.0,0.0466539]
[1738176571975,0.49153483,102900.0,102890.0,0.0466539]
[1738176573010,0.48153483,102900.0,102890.0,0.0466539]
[1738176573222,0.422386,102890.0,102880.0,0.00029841]
[1738176573451,0.62873053,102890.0,102880.0,0.00029841]
[1738176574277,0.65173053,102890.0,102880.0,0.00029841]
[1738176574481,0.2924,102880.0,102870.0,0.00029841]
[1738176574711,0.49874453,102880.0,102870.0,0.00029841]
[1738176575801,0.49974453,102880.0,102870.0,0.00129841]
[1738176576391,0.52130453,102880.0,102870.0,0.00229841]
[1738176577207,0.50130453,102880.0,102870.0,0.00229841]
[1738176577404,0.52130453,102880.0,102870.0,0.00229841]
[1738176578870,0.53128713,102880.0,102870.0,0.00229841]
[1738176581736,0.57018913,102880.0,102870.0,0.00229841]
[1738176582553,0.8092905,102880.0,102870.0,0.00229841]
[1738176582918,0.8322905,102880.0,102870.0,4.1e-07]
[1738176583557,0.9346905,102880.0,102870.0,4.1e-07]
[1738176583764,0.82558913,102880.0,102870.0,4.1e-07]
[1738176583943,0.72318913,102880.0,102870.0,4.1e-07]
[1738176584555,0.340323,102850.0,102830.0,0.442963]
[1738176584693,0.09724316,102840.0,102830.0,0.24851798]
[1738176584893,0.09724316,102840.0,102830.0,0.24847798]
[1738176585094,0.145855,102850.0,102840.0,0.145857]
[1738176585309,0.24309816,102850.0,102830.0,0.44296098]
[1738176585508,0.09724316,102840.0,102830.0,0.24847798]
[1738176585977,0.09724316,102840.0,102830.0,0.24847898]
[1738176586204,0.24310016,102840.0,102830.0,0.24847898]
[1738176586537,0.09724316,102840.0,102830.0,0.24847898]
[1738176588429,0.10024316,102840.0,102830.0,0.24847898]
[1738176588838,0.10124316,102840.0,102830.0,0.24847898]
[1738176589195,0.09824316,102840.0,102830.0,0.24847898]
[1738176589372,0.09724316,102840.0,102830.0,0.24847898]
[1738176589577,0.09724316,102840.0,102830.0,0.24947898]
[1738176589907,0.45314937,102860.0,102840.0,0.340322]
[1738176589908,0.664337,102860.0,102840.0,0.340322]
[1738176590133,0.09724316,102850.0,102840.0,0.340322]
[1738176591226,0.24308616,102850.0,102840.0,0.001]
[1738176591451,0.43754416,102850.0,102840.0,0.145857]
[1738176591630,0.54664553,102850.0,102830.0,0.68606398]
[1738176591807,0.63500916,102850.0,102830.0,0.58350398]
[1738176592135,0.10124316,102850.0,102840.0,0.145857]
[1738176592547,0.09724316,102850.0,102840.0,0.145857]
[1738176594376,0.10124316,102850.0,102840.0,0.145857]
[1738176596937,0.10138536,102850.0,102840.0,0.145857]
[1738176600411,0.10138536,102850.0,102840.0,0.228957]
[1738176600613,0.10138536,102850.0,102840.0,0.23881947]
[1738176601483,0.0041422,102850.0,102840.0,0.41181947]
[1738176601684,0.0041422,102850.0,102840.0,0.55636263]
[1738176601889,0.0041422,102850.0,102840.0,0.65636263]
[1738176602096,0.0041422,102850.0,102840.0,0.75636263]
[1738176602728,0.0011422,102850.0,102840.0,0.78613985]
[1738176603030,0.0021422,102850.0,102840.0,0.79213985]
[1738176603403,2e-07,102850.0,102840.0,2.41560948]
[1738176603631,0.1464013,102900.0,102890.0,0.145786]
[1738176603983,0.43801246,102900.0,102880.0,0.340181]
[1738176604187,0.09724316,102890.0,102880.0,0.194392]
[1738176605232,0.09724316,102890.0,102880.0,0.195392]
[1738176606225,0.09724316,102890.0,102880.0,0.194392]
[1738176606425,0.09724316,102890.0,102880.0,0.344392]
[1738176606637,0.09824316,102890.0,102880.0,0.344392]
[1738176607422,0.10124316,102890.0,102880.0,0.344392]
[1738176608454,0.004,102890.0,102880.0,0.344392]
[1738176608812,0.0041423,102890.0,102880.0,0.421292]
[1738176609213,0.0041423,102890.0,102880.0,0.344392]
[1738176610336,0.10138546,102890.0,102880.0,0.344392]
[1738176611638,0.24717146,102890.0,102880.0,0.344392]
[1738176611859,0.44155646,102890.0,102870.0,0.39854094]
[1738176612013,0.24304316,102880.0,102870.0,0.00973194]
[1738176612222,0.09724316,102880.0,102870.0,0.145815]
[1738176612621,0.24304316,102880.0,102870.0,0.295815]
[1738176613533,0.145815,102870.0,102860.0,0.00972705]
[1738176613751,0.24305816,102870.0,102860.0,4.798e-05]
[1738176614164,0.43815953,102870.0,102860.0,4.798e-05]
[1738176614583,0.45815953,102870.0,102860.0,4.798e-05]
[1738176615005,0.45815953,102870.0,102860.0,0.00104798]
[1738176615215,0.46115953,102870.0,102860.0,0.00104798]
[1738176616253,0.46115953,102870.0,102860.0,4.798e-05]
[1738176616441,0.32205816,102870.0,102860.0,4.798e-05]
[1738176616648,0.32305816,102870.0,102860.0,4.798e-05]
[1738176617472,0.24705816,102870.0,102860.0,0.14587698]
[1738176617899,0.10124316,102870.0,102860.0,0.14587698]
[1738176618330,0.10124316,102870.0,102860.0,0.14580696]
[1738176620896,0.145829,102860.0,102850.0,0.19474262]
[1738176621111,0.145829,102860.0,102850.0,0.00029862]
[1738176621112,0.24307216,102860.0,102850.0,0.00029862]
[1738176622173,0.09724316,102860.0,102850.0,0.14614162]
[1738176622620,0.24307216,102860.0,102850.0,0.00029862]
[1738176625339,0.25307216,102860.0,102850.0,0.00029862]
[1738176625553,0.36217353,102860.0,102850.0,0.00029862]
[1738176625765,0.50637353,102860.0,102850.0,0.00029862]
[1738176625998,0.49637353,102860.0,102850.0,0.00029862]
[1738176627535,0.50137353,102860.0,102850.0,0.00029862]
[1738176628818,0.63137353,102860.0,102850.0,0.00029862]
[1738176629261,0.63637353,102860.0,102850.0,0.00129862]
[1738176629464,0.73373029,102860.0,102850.0,0.00129862]
[1738176629994,0.74337728,102860.0,102850.0,0.00129862]
[1738176630609,0.76637728,102860.0,102850.0,0.00129862]
[1738176630934,0.78293728,102860.0,102850.0,0.00129862]
[1738176631612,0.68058052,102860.0,102850.0,0.00029862]
[1738176631818,0.67558052,102860.0,102850.0,0.00029862]
[1738176632023,0.68058052,102860.0,102850.0,0.00129862]
[1738176632166,0.68558052,102860.0,102850.0,0.00229862]
[1738176632577,0.68058052,102860.0,102850.0,0.00129862]
[1738176632797,0.78593728,102860.0,102850.0,0.00229862]
[1738176633508,0.78593728,102860.0,102830.0,0.00029862]
[1738176633509,0.296997,102840.0,102830.0,0.00029862]
[1738176633775,0.50334153,102840.0,102830.0,0.0003466]
[1738176634401,0.45464153,102840.0,102830.0,0.0003466]
[1738176634810,0.43464153,102840.0,102830.0,0.0003466]
[1738176635023,0.5637029,102840.0,102830.0,0.0003466]
[1738176635430,0.5657029,102840.0,102830.0,0.0003466]
[1738176635659,0.45660153,102840.0,102830.0,0.0003466]
[1738176637584,0.46658437,102840.0,102830.0,0.0003466]
[1738176641567,0.44658437,102840.0,102830.0,0.0003466]
[1738176641834,0.46658437,102840.0,102830.0,0.0003466]
[1738176643288,0.56394113,102840.0,102830.0,0.0003466]
[1738176643674,0.46658437,102840.0,102830.0,0.0003466]
[1738176644804,0.57568574,102840.0,102830.0,0.0003466]
[1738176644936,0.70568574,102840.0,102830.0,0.0003466]
[1738176646427,0.59658437,102840.0,102830.0,0.0003466]
[1738176649062,0.51418437,102840.0,102830.0,0.0003466]
[1738176649476,0.275083,102840.0,102830.0,0.0003466]
[1738176650505,0.38418437,102840.0,102830.0,0.0003466]
[1738176653173,0.145871,102830.0,102820.0,0.0419466]
[1738176653497,0.24311416,102830.0,102820.0,0.04199458]
[1738176653701,0.24311416,102830.0,102820.0,0.18788058]
[1738176654109,0.24311416,102830.0,102820.0,0.04199458]
[1738176654682,0.24311416,102830.0,102820.0,0.04399458]
[1738176654890,0.21588781,102830.0,102820.0,0.04399458]
[1738176656766,0.21588781,102830.0,102820.0,0.00204798]
[1738176657315,0.21588781,102830.0,102820.0,0.00219018]
[1738176657509,0.32498918,102830.0,102820.0,0.00219018]
[1738176657717,0.34498918,102830.0,102820.0,0.00219018]
[1738176658146,0.23588781,102830.0,102820.0,0.00219018]
[1738176659010,0.21588781,102830.0,102820.0,0.00219018]
[1738176659836,0.23588781,102830.0,102820.0,0.00219018]
[1738176660012,0.21588781,102830.0,102820.0,0.00219018]
[1738176660682,0.09724316,102830.0,102820.0,0.14807618]
[1738176660891,0.00029862,102840.0,102830.0,0.228771]
[1738176661109,0.00029862,102840.0,102830.0,0.427871]
[1738176661319,0.00029862,102840.0,102830.0,0.537831]
[1738176662386,0.00029862,102840.0,102830.0,0.447231]
[1738176662587,0.00029862,102840.0,102830.0,0.427871]
[1738176662791,0.09754178,102840.0,102830.0,0.437271]
[1738176663878,0.09954178,102840.0,102830.0,0.437271]
[1738176664086,0.09954178,102840.0,102830.0,0.438271]
[1738176664330,0.09754178,102840.0,102830.0,0.438271]
[1738176664753,0.09744726,102840.0,102830.0,0.44785708]
[1738176665170,0.0002041,102840.0,102830.0,0.44841708]
[1738176665380,0.0002041,102840.0,102830.0,0.45781708]
[1738176669518,0.0002041,102840.0,102830.0,0.44841708]
[1738176669729,0.0002041,102840.0,102830.0,0.45781708]
[1738176671483,0.0002041,102840.0,102830.0,0.58081708]
[1738176673276,0.0002041,102840.0,102830.0,0.67806024]
[1738176673675,0.0002041,102840.0,102830.0,0.67706024]
[1738176674073,0.0001422,102860.0,102850.0,0.382303]
[1738176674276,0.0001422,102860.0,102850.0,0.72432216]
[1738176674534,0.0001422,102860.0,102850.0,0.97432216]
[1738176674719,0.0001422,102860.0,102850.0,1.46044216]
[1738176675721,0.0001422,102860.0,102850.0,1.48874737]
[1738176675894,0.0001422,102870.0,102860.0,0.656789]
[1738176676070,2e-07,102870.0,102860.0,3.81635837]
[1738176676275,0.0001423,102890.0,102880.0,0.55076]
[1738176676472,0.0001423,102890.0,102880.0,1.04616]
[1738176676719,0.0001423,102890.0,102880.0,1.07046521]
[1738176677079,0.00028623,102890.0,102880.0,1.04616]
[1738176677486,0.00028623,102890.0,102880.0,1.04916]
[1738176677985,0.00128623,102890.0,102880.0,1.08046521]
[1738176678185,0.00128623,102890.0,102880.0,1.17770837]
[1738176679414,0.00128623,102890.0,102880.0,1.20167157]
[1738176680040,0.00128623,102890.0,102880.0,1.22122625]